[Event "Titled Tuesday Blitz June 27 Early 2023"]
[White "Theodorou, Nikolas"]
[Black "Agibileg, Uurtsaikh"]
[WhiteFideId "4262875"]
[BlackFideId "4901606"]
[WhiteElo "3014"]
[BlackElo "2671"]
[Result "1-0"]
[Round "2"]
[TimeControl "180+2"]
[Date "2023.06.27"]
[WhiteClock "0:00:21"]
[BlackClock "0:01:03"]
[Board "8"]

1. Nf3 {[%clk 0:03:00]}  Nf6 {[%clk 0:02:59]} 2. b3 {[%clk 0:03:01]}  g6 {[%clk 0:02:59]} 3. Bb2 {[%clk 0:03:01]}  Bg7 {[%clk 0:03:00]} 4. g3 {[%clk 0:03:01]}  O-O {[%clk 0:03:01]} 5. Bg2 {[%clk 0:02:46]}  d5 {[%clk 0:03:01]} 6. c4 {[%clk 0:02:45]}  dxc4 {[%clk 0:03:00]} 7. bxc4 {[%clk 0:02:46]}  c5 {[%clk 0:03:01]} 8. O-O {[%clk 0:02:45]}  Nc6 {[%clk 0:03:01]} 9. d3 {[%clk 0:02:44]}  Bd7 {[%clk 0:02:44]} 10. Nc3 {[%clk 0:02:41]}  Rb8 {[%clk 0:02:44]} 11. a4 {[%clk 0:02:38]}  Nb4 {[%clk 0:02:42]} 12. a5 {[%clk 0:02:37]}  Bc6 {[%clk 0:02:41]} 13. Qb3 {[%clk 0:02:27]}  Nd7 {[%clk 0:02:23]} 14. Rfd1 {[%clk 0:02:27]}  Ne5 {[%clk 0:02:23]} 15. Nxe5 {[%clk 0:02:23]}  Bxg2 {[%clk 0:02:23]} 16. Nxf7 {[%clk 0:02:20]}  Rxf7 {[%clk 0:02:14]} 17. Kxg2 {[%clk 0:02:20]}  Qd4 {[%clk 0:02:01]} 18. e3 {[%clk 0:02:02]}  Qg4 {[%clk 0:02:01]} 19. Ne4 {[%clk 0:00:48]}  Rbf8 {[%clk 0:02:00]} 20. Rd2 {[%clk 0:00:34]}  Bxb2 {[%clk 0:01:31]} 21. Rxb2 {[%clk 0:00:35]}  Rd8 {[%clk 0:01:27]} 22. Nxc5 {[%clk 0:00:32]}  Qf3+ {[%clk 0:01:22]} 23. Kg1 {[%clk 0:00:31]}  Nc6 {[%clk 0:01:18]} 24. d4 {[%clk 0:00:20]}  b6 {[%clk 0:01:13]} 25. axb6 {[%clk 0:00:21]}  axb6 {[%clk 0:01:14]} 26. Ne6 {[%clk 0:00:21]}  Rd6 {[%clk 0:01:03]} 27. Ng5 {[%clk 0:00:21]} 1-0


[Site "https://www.chess.com"]

[Event "Titled Tuesday Blitz June 27 Early 2023"]
[White "Ashraf, Artin"]
[Black "Martinez Alcantara, Jose Eduardo"]
[WhiteFideId "22514805"]
[BlackFideId "3805662"]
[WhiteElo "2665"]
[BlackElo "2996"]
[Result "0-1"]
[Round "2"]
[TimeControl "180+2"]
[Date "2023.06.27"]
[WhiteClock "0:00:00"]
[BlackClock "0:00:31"]
[Board "10"]

1. d4 {[%clk 0:03:00]}  Nf6 {[%clk 0:02:58]} 2. Nc3 {[%clk 0:03:01]}  d5 {[%clk 0:02:57]} 3. Bf4 {[%clk 0:03:01]}  c5 {[%clk 0:02:58]} 4. e3 {[%clk 0:02:57]}  cxd4 {[%clk 0:02:58]} 5. exd4 {[%clk 0:02:56]}  a6 {[%clk 0:02:59]} 6. Bd3 {[%clk 0:02:28]}  Nc6 {[%clk 0:02:59]} 7. Nce2 {[%clk 0:02:26]}  Bg4 {[%clk 0:02:46]} 8. c3 {[%clk 0:02:25]}  e6 {[%clk 0:02:44]} 9. f3 {[%clk 0:02:18]}  Bh5 {[%clk 0:02:43]} 10. Nh3 {[%clk 0:02:16]}  Bg6 {[%clk 0:02:43]} 11. Bg5 {[%clk 0:01:59]}  Bd6 {[%clk 0:02:37]} 12. Nhf4 {[%clk 0:01:56]}  Qb6 {[%clk 0:02:30]} 13. Rb1 {[%clk 0:01:50]}  Bxd3 {[%clk 0:02:05]} 14. Nxd3 {[%clk 0:01:38]}  Nd7 {[%clk 0:02:05]} 15. Bf4 {[%clk 0:01:14]}  Be7 {[%clk 0:01:57]} 16. Qb3 {[%clk 0:01:08]}  Qa7 {[%clk 0:01:51]} 17. O-O {[%clk 0:01:06]}  O-O {[%clk 0:01:51]} 18. Kh1 {[%clk 0:01:01]}  Rfc8 {[%clk 0:01:51]} 19. Rfc1 {[%clk 0:00:51]}  b5 {[%clk 0:01:47]} 20. a3 {[%clk 0:00:46]}  Nb6 {[%clk 0:01:45]} 21. Qd1 {[%clk 0:00:27]}  Nc4 {[%clk 0:01:45]} 22. Ra1 {[%clk 0:00:27]}  Qb6 {[%clk 0:01:31]} 23. b4 {[%clk 0:00:25]}  a5 {[%clk 0:01:27]} 24. Nc5 {[%clk 0:00:24]}  a4 {[%clk 0:01:24]} 25. Qd3 {[%clk 0:00:21]}  Qd8 {[%clk 0:01:07]} 26. Re1 {[%clk 0:00:18]}  e5 {[%clk 0:01:06]} 27. dxe5 {[%clk 0:00:16]}  Bxc5 {[%clk 0:01:07]} 28. bxc5 {[%clk 0:00:15]}  N6a5 {[%clk 0:00:49]} 29. Nd4 {[%clk 0:00:13]}  Nb3 {[%clk 0:00:50]} 30. Ra2 {[%clk 0:00:09]}  Nxc5 {[%clk 0:00:49]} 31. Qb1 {[%clk 0:00:09]}  Ne6 {[%clk 0:00:44]} 32. Nxe6 {[%clk 0:00:08]}  fxe6 {[%clk 0:00:45]} 33. Qxb5 {[%clk 0:00:08]}  Rcb8 {[%clk 0:00:35]} 34. Qc5 {[%clk 0:00:08]}  Rb3 {[%clk 0:00:32]} 35. Qd4 {[%clk 0:00:08]}  Rxa3 {[%clk 0:00:30]} 36. Rxa3 {[%clk 0:00:04]}  Nxa3 {[%clk 0:00:31]} 37. Qc5 {[%clk 0:00:00]}  Nc4 {[%clk 0:00:31]} 0-1


[Site "https://www.chess.com"]

[Event "Titled Tuesday Blitz June 27 Early 2023"]
[White "Tabatabaei, M. Amin"]
[Black "Kourkoulos-Arditis, Stamatis"]
[WhiteFideId "12521213"]
[BlackFideId "4221990"]
[WhiteElo "2996"]
[BlackElo "2664"]
[Result "1/2-1/2"]
[Round "2"]
[TimeControl "180+2"]
[Date "2023.06.27"]
[WhiteClock "0:00:02"]
[BlackClock "0:00:06"]
[Board "11"]

1. c4 {[%clk 0:03:00]}  Nf6 {[%clk 0:02:57]} 2. Nc3 {[%clk 0:03:00]}  g6 {[%clk 0:02:57]} 3. e4 {[%clk 0:03:00]}  d6 {[%clk 0:02:58]} 4. d4 {[%clk 0:03:00]}  Bg7 {[%clk 0:02:58]} 5. Be2 {[%clk 0:02:59]}  O-O {[%clk 0:02:58]} 6. Be3 {[%clk 0:03:00]}  Na6 {[%clk 0:02:56]} 7. Nf3 {[%clk 0:02:53]}  e5 {[%clk 0:02:53]} 8. O-O {[%clk 0:02:48]}  Ng4 {[%clk 0:02:51]} 9. Bg5 {[%clk 0:02:48]}  Qe8 {[%clk 0:02:52]} 10. Re1 {[%clk 0:02:44]}  exd4 {[%clk 0:02:49]} 11. Nxd4 {[%clk 0:02:45]}  Qe5 {[%clk 0:02:50]} 12. Nf3 {[%clk 0:02:27]}  Qc5 {[%clk 0:02:48]} 13. Bh4 {[%clk 0:02:26]}  Bxc3 {[%clk 0:02:32]} 14. bxc3 {[%clk 0:02:26]}  Be6 {[%clk 0:02:30]} 15. Qd4 {[%clk 0:02:15]}  f6 {[%clk 0:02:24]} 16. Nd2 {[%clk 0:02:04]}  Ne5 {[%clk 0:02:22]} 17. Nb3 {[%clk 0:02:03]}  Qb6 {[%clk 0:02:09]} 18. Rab1 {[%clk 0:01:55]}  Rab8 {[%clk 0:01:45]} 19. a4 {[%clk 0:01:33]}  Kg7 {[%clk 0:01:19]} 20. Rec1 {[%clk 0:00:50]}  c5 {[%clk 0:01:14]} 21. Qd1 {[%clk 0:00:47]}  Qc6 {[%clk 0:01:11]} 22. Nd2 {[%clk 0:00:47]}  g5 {[%clk 0:01:04]} 23. Bg3 {[%clk 0:00:47]}  Nc7 {[%clk 0:00:44]} 24. h4 {[%clk 0:00:47]}  h6 {[%clk 0:00:44]} 25. Nf3 {[%clk 0:00:47]}  Rbd8 {[%clk 0:00:39]} 26. Nxe5 {[%clk 0:00:44]}  dxe5 {[%clk 0:00:37]} 27. Qc2 {[%clk 0:00:44]}  Ne8 {[%clk 0:00:33]} 28. Rd1 {[%clk 0:00:43]}  Nd6 {[%clk 0:00:27]} 29. Rd5 {[%clk 0:00:43]}  Bxd5 {[%clk 0:00:27]} 30. cxd5 {[%clk 0:00:42]}  Qc8 {[%clk 0:00:23]} 31. a5 {[%clk 0:00:40]}  c4 {[%clk 0:00:19]} 32. Rb4 {[%clk 0:00:28]}  Qc5 {[%clk 0:00:19]} 33. Qb1 {[%clk 0:00:24]}  Rd7 {[%clk 0:00:18]} 34. Bg4 {[%clk 0:00:20]}  Rc7 {[%clk 0:00:17]} 35. Be6 {[%clk 0:00:20]}  Qxa5 {[%clk 0:00:17]} 36. f3 {[%clk 0:00:17]}  Qa3 {[%clk 0:00:16]} 37. Qc2 {[%clk 0:00:16]}  a5 {[%clk 0:00:13]} 38. Ra4 {[%clk 0:00:15]}  Qc5+ {[%clk 0:00:14]} 39. Bf2 {[%clk 0:00:16]}  Qb5 {[%clk 0:00:13]} 40. Ra1 {[%clk 0:00:16]}  Qb3 {[%clk 0:00:13]} 41. Qc1 {[%clk 0:00:15]}  Qb5 {[%clk 0:00:05]} 42. Qa3 {[%clk 0:00:14]}  Rd8 {[%clk 0:00:04]} 43. Qa2 {[%clk 0:00:13]}  a4 {[%clk 0:00:03]} 44. Rb1 {[%clk 0:00:13]}  Qa6 {[%clk 0:00:01]} 45. Bb6 {[%clk 0:00:13]}  Rdc8 {[%clk 0:00:01]} 46. Bxc7 {[%clk 0:00:03]}  Rxc7 {[%clk 0:00:01]} 47. Qa3 {[%clk 0:00:03]}  b5 {[%clk 0:00:01]} 48. Qb4 {[%clk 0:00:04]}  Qb6+ {[%clk 0:00:02]} 49. Kf1 {[%clk 0:00:04]}  Ra7 {[%clk 0:00:03]} 50. hxg5 {[%clk 0:00:05]}  hxg5 {[%clk 0:00:02]} 51. Qa3 {[%clk 0:00:05]}  Qe3 {[%clk 0:00:02]} 52. Re1 {[%clk 0:00:04]}  Qd3+ {[%clk 0:00:02]} 53. Kf2 {[%clk 0:00:05]}  Ra6 {[%clk 0:00:03]} 54. Qc5 {[%clk 0:00:04]}  g4 {[%clk 0:00:03]} 55. Qc7+ {[%clk 0:00:04]}  Kg6 {[%clk 0:00:03]} 56. Qd8 {[%clk 0:00:02]}  Qd2+ {[%clk 0:00:03]} 57. Kf1 {[%clk 0:00:03]}  g3 {[%clk 0:00:03]} 58. Qg8+ {[%clk 0:00:03]}  Kh6 {[%clk 0:00:04]} 59. Qxg3 {[%clk 0:00:03]}  Qg5 {[%clk 0:00:04]} 60. Qh3+ {[%clk 0:00:04]}  Kg7 {[%clk 0:00:05]} 61. Kf2 {[%clk 0:00:04]}  a3 {[%clk 0:00:06]} 62. Rh1 {[%clk 0:00:04]}  Qd2+ {[%clk 0:00:04]} 63. Kg1 {[%clk 0:00:05]}  Qc1+ {[%clk 0:00:04]} 64. Kh2 {[%clk 0:00:04]}  Qf4+ {[%clk 0:00:04]} 65. Kg1 {[%clk 0:00:05]}  Qc1+ {[%clk 0:00:04]} 66. Kf2 {[%clk 0:00:05]}  Qd2+ {[%clk 0:00:05]} 67. Kf1 {[%clk 0:00:04]}  Qc1+ {[%clk 0:00:05]} 68. Ke2 {[%clk 0:00:04]}  Qc2+ {[%clk 0:00:06]} 69. Ke3 {[%clk 0:00:04]}  Qxc3+ {[%clk 0:00:06]} 70. Kf2 {[%clk 0:00:05]}  Qd2+ {[%clk 0:00:07]} 71. Kf1 {[%clk 0:00:04]}  Qc1+ {[%clk 0:00:07]} 72. Ke2 {[%clk 0:00:05]}  Qc2+ {[%clk 0:00:07]} 73. Ke1 {[%clk 0:00:05]}  Qc1+ {[%clk 0:00:07]} 74. Kf2 {[%clk 0:00:06]}  Qd2+ {[%clk 0:00:07]} 75. Kf1 {[%clk 0:00:06]}  Qc1+ {[%clk 0:00:07]} 76. Ke2 {[%clk 0:00:06]}  Qxh1 {[%clk 0:00:05]} 77. Qxh1 {[%clk 0:00:04]}  a2 {[%clk 0:00:06]} 78. Qh3 {[%clk 0:00:01]}  a1=Q {[%clk 0:00:06]} 79. Qg4+ {[%clk 0:00:02]}  Kf8 {[%clk 0:00:06]} 80. Qg8+ {[%clk 0:00:02]}  Ke7 {[%clk 0:00:05]} 81. Qg7+ {[%clk 0:00:03]}  Ke8 {[%clk 0:00:05]} 82. Qg8+ {[%clk 0:00:02]}  Ke7 {[%clk 0:00:06]} 83. Qg7+ {[%clk 0:00:03]}  Ke8 {[%clk 0:00:06]} 84. Qh8+ {[%clk 0:00:03]}  Ke7 {[%clk 0:00:06]} 85. Qh7+ {[%clk 0:00:03]}  Ke8 {[%clk 0:00:06]} 86. Qg8+ {[%clk 0:00:02]}  Ke7 {[%clk 0:00:06]} 1/2-1/2


[Site "https://www.chess.com"]

[Event "Titled Tuesday Blitz June 27 Early 2023"]
[White "Alex_Sahakyan2006"]
[Black "Paravyan, David"]
[BlackFideId "4194985"]
[WhiteElo "2660"]
[BlackElo "2994"]
[Result "0-1"]
[Round "2"]
[TimeControl "180+2"]
[Date "2023.06.27"]
[WhiteClock "0:00:03"]
[BlackClock "0:00:06"]
[Board "12"]

1. d4 {[%clk 0:03:00]}  Nf6 {[%clk 0:02:58]} 2. Nf3 {[%clk 0:03:00]}  g6 {[%clk 0:02:58]} 3. Nc3 {[%clk 0:02:58]}  d5 {[%clk 0:02:58]} 4. Bf4 {[%clk 0:02:57]}  Bg7 {[%clk 0:02:58]} 5. e3 {[%clk 0:02:57]}  O-O {[%clk 0:02:57]} 6. Nb5 {[%clk 0:02:57]}  Na6 {[%clk 0:02:56]} 7. h3 {[%clk 0:02:58]}  Ne4 {[%clk 0:02:49]} 8. Nd2 {[%clk 0:02:58]}  Nxd2 {[%clk 0:02:09]} 9. Qxd2 {[%clk 0:02:59]}  c6 {[%clk 0:02:09]} 10. Nc3 {[%clk 0:02:59]}  Nb8 {[%clk 0:02:09]} 11. Rd1 {[%clk 0:02:36]}  Nd7 {[%clk 0:02:09]} 12. e4 {[%clk 0:02:36]}  dxe4 {[%clk 0:02:08]} 13. Nxe4 {[%clk 0:02:37]}  Nf6 {[%clk 0:02:08]} 14. Nxf6+ {[%clk 0:02:35]}  exf6 {[%clk 0:02:09]} 15. Be2 {[%clk 0:02:34]}  Re8 {[%clk 0:02:08]} 16. O-O {[%clk 0:02:33]}  Bf5 {[%clk 0:02:06]} 17. Bc4 {[%clk 0:02:31]}  Qd7 {[%clk 0:02:06]} 18. Bg3 {[%clk 0:02:20]}  Be6 {[%clk 0:01:59]} 19. Bb3 {[%clk 0:02:14]}  a5 {[%clk 0:01:46]} 20. d5 {[%clk 0:02:05]}  cxd5 {[%clk 0:01:47]} 21. Bxd5 {[%clk 0:02:06]}  f5 {[%clk 0:01:32]} 22. Bxe6 {[%clk 0:01:54]}  Qxe6 {[%clk 0:01:31]} 23. b3 {[%clk 0:01:54]}  Qc6 {[%clk 0:01:27]} 24. c4 {[%clk 0:01:53]}  a4 {[%clk 0:01:24]} 25. Qb4 {[%clk 0:01:46]}  axb3 {[%clk 0:01:22]} 26. axb3 {[%clk 0:01:46]}  Re4 {[%clk 0:01:08]} 27. Rd6 {[%clk 0:01:44]}  Qc8 {[%clk 0:00:54]} 28. Qd2 {[%clk 0:01:37]}  Bf8 {[%clk 0:00:49]} 29. Rd7 {[%clk 0:01:30]}  Qc6 {[%clk 0:00:49]} 30. Rd1 {[%clk 0:01:22]}  Rae8 {[%clk 0:00:48]} 31. Rd8 {[%clk 0:01:18]}  Bc5 {[%clk 0:00:44]} 32. Rxe8+ {[%clk 0:01:17]}  Rxe8 {[%clk 0:00:45]} 33. Qd7 {[%clk 0:01:15]}  Re1+ {[%clk 0:00:41]} 34. Kh2 {[%clk 0:01:13]}  Qxd7 {[%clk 0:00:35]} 35. Rxd7 {[%clk 0:01:12]}  b6 {[%clk 0:00:35]} 36. h4 {[%clk 0:00:48]}  h5 {[%clk 0:00:34]} 37. Rb7 {[%clk 0:00:30]}  f6 {[%clk 0:00:06]} 38. b4 {[%clk 0:00:24]}  Bxb4 {[%clk 0:00:06]} 39. Rxb6 {[%clk 0:00:24]}  Bc3 {[%clk 0:00:07]} 40. c5 {[%clk 0:00:23]}  Rc1 {[%clk 0:00:05]} 41. c6 {[%clk 0:00:18]}  Be5 {[%clk 0:00:05]} 42. Rb8+ {[%clk 0:00:18]}  Kf7 {[%clk 0:00:05]} 43. Rb7+ {[%clk 0:00:18]}  Ke6 {[%clk 0:00:05]} 44. c7 {[%clk 0:00:17]}  f4 {[%clk 0:00:04]} 45. Rb6+ {[%clk 0:00:13]}  Kf5 {[%clk 0:00:04]} 46. Bxf4 {[%clk 0:00:07]}  Kxf4 {[%clk 0:00:05]} 47. g3+ {[%clk 0:00:06]}  Kf3 {[%clk 0:00:06]} 48. Rb3+ {[%clk 0:00:03]}  Kxf2 {[%clk 0:00:06]} 0-1


[Site "https://www.chess.com"]

[Event "Titled Tuesday Blitz June 27 Early 2023"]
[White "Narayanan.S.L"]
[Black "Sahib Singh"]
[WhiteFideId "5058422"]
[BlackFideId "25618342"]
[WhiteElo "2990"]
[BlackElo "2660"]
[Result "1-0"]
[Round "2"]
[TimeControl "180+2"]
[Date "2023.06.27"]
[WhiteClock "0:01:56"]
[BlackClock "0:00:02"]
[Board "13"]

1. e3 {[%clk 0:02:59]}  e5 {[%clk 0:02:59]} 2. b3 {[%clk 0:02:58]}  d5 {[%clk 0:02:56]} 3. Bb2 {[%clk 0:02:59]}  Bd6 {[%clk 0:02:57]} 4. c4 {[%clk 0:02:59]}  Nf6 {[%clk 0:02:53]} 5. cxd5 {[%clk 0:02:58]}  Nxd5 {[%clk 0:02:52]} 6. Ne2 {[%clk 0:02:58]}  O-O {[%clk 0:02:52]} 7. Nbc3 {[%clk 0:02:57]}  Nf6 {[%clk 0:02:46]} 8. Ng3 {[%clk 0:02:57]}  Nc6 {[%clk 0:02:44]} 9. h4 {[%clk 0:02:57]}  Bg4 {[%clk 0:02:40]} 10. Be2 {[%clk 0:02:56]}  Be6 {[%clk 0:02:29]} 11. h5 {[%clk 0:02:55]}  h6 {[%clk 0:02:29]} 12. a3 {[%clk 0:02:55]}  a6 {[%clk 0:02:25]} 13. Bc4 {[%clk 0:02:52]}  Qd7 {[%clk 0:02:14]} 14. Bxe6 {[%clk 0:02:51]}  Qxe6 {[%clk 0:02:15]} 15. Qc2 {[%clk 0:02:48]}  Rae8 {[%clk 0:02:02]} 16. d3 {[%clk 0:02:45]}  Qg4 {[%clk 0:01:56]} 17. Qe2 {[%clk 0:02:41]}  Qxe2+ {[%clk 0:01:46]} 18. Kxe2 {[%clk 0:02:40]}  Nd7 {[%clk 0:01:44]} 19. Nf5 {[%clk 0:02:39]}  Ne7 {[%clk 0:01:24]} 20. g4 {[%clk 0:02:36]}  Nxf5 {[%clk 0:01:24]} 21. gxf5 {[%clk 0:02:36]}  Nf6 {[%clk 0:01:19]} 22. Ne4 {[%clk 0:02:36]}  Nxe4 {[%clk 0:01:19]} 23. dxe4 {[%clk 0:02:36]}  f6 {[%clk 0:01:19]} 24. Rhg1 {[%clk 0:02:37]}  Kf7 {[%clk 0:01:19]} 25. Rg6 {[%clk 0:02:36]}  Rg8 {[%clk 0:01:20]} 26. Rag1 {[%clk 0:02:35]}  a5 {[%clk 0:01:17]} 27. R6g4 {[%clk 0:02:31]}  b5 {[%clk 0:01:12]} 28. Rd1 {[%clk 0:02:31]}  Rd8 {[%clk 0:01:10]} 29. Rd5 {[%clk 0:02:31]}  c6 {[%clk 0:01:09]} 30. Rd2 {[%clk 0:02:31]}  Be7 {[%clk 0:01:01]} 31. Rc2 {[%clk 0:02:31]}  c5 {[%clk 0:00:59]} 32. f4 {[%clk 0:02:31]}  exf4 {[%clk 0:00:48]} 33. exf4 {[%clk 0:02:32]}  Bd6 {[%clk 0:00:34]} 34. Kf3 {[%clk 0:02:30]}  Be7 {[%clk 0:00:28]} 35. Ke3 {[%clk 0:02:24]}  Rge8 {[%clk 0:00:20]} 36. e5 {[%clk 0:02:23]}  Kf8 {[%clk 0:00:20]} 37. Rcg2 {[%clk 0:02:20]}  fxe5 {[%clk 0:00:20]} 38. fxe5 {[%clk 0:02:00]}  Bg5+ {[%clk 0:00:12]} 39. Rxg5 {[%clk 0:02:01]}  hxg5 {[%clk 0:00:13]} 40. Rxg5 {[%clk 0:02:02]}  c4 {[%clk 0:00:13]} 41. bxc4 {[%clk 0:02:02]}  bxc4 {[%clk 0:00:13]} 42. e6 {[%clk 0:02:02]}  Rd3+ {[%clk 0:00:12]} 43. Ke4 {[%clk 0:02:03]}  Re7 {[%clk 0:00:10]} 44. Be5 {[%clk 0:01:59]}  a4 {[%clk 0:00:03]} 45. Rg1 {[%clk 0:01:59]}  Rd2 {[%clk 0:00:03]} 46. Rb1 {[%clk 0:01:59]}  Re8 {[%clk 0:00:02]} 47. Rb7 {[%clk 0:01:58]}  Rg2 {[%clk 0:00:03]} 48. h6 {[%clk 0:01:57]}  gxh6 {[%clk 0:00:02]} 49. Rh7 {[%clk 0:01:57]}  Rg4+ {[%clk 0:00:03]} 50. Kd5 {[%clk 0:01:56]}  Rg5 {[%clk 0:00:03]} 51. f6 {[%clk 0:01:55]}  Rd8+ {[%clk 0:00:02]} 52. Ke4 {[%clk 0:01:56]}  Rg4+ {[%clk 0:00:01]} 53. Kf5 {[%clk 0:01:55]}  Rg5+ {[%clk 0:00:01]} 54. Kf4 {[%clk 0:01:56]}  Kg8 {[%clk 0:00:02]} 55. Rxh6 {[%clk 0:01:56]}  Rg1 {[%clk 0:00:01]} 56. f7+ {[%clk 0:01:55]}  Kf8 {[%clk 0:00:02]} 57. Rh8+ {[%clk 0:01:53]}  Ke7 {[%clk 0:00:02]} 58. Rxd8 {[%clk 0:01:54]}  Rf1+ {[%clk 0:00:02]} 59. Ke4 {[%clk 0:01:54]}  Kxd8 {[%clk 0:00:02]} 60. Bd6 {[%clk 0:01:55]}  c3 {[%clk 0:00:02]} 61. Kd3 {[%clk 0:01:55]}  Rd1+ {[%clk 0:00:01]} 62. Kxc3 {[%clk 0:01:56]}  Rxd6 {[%clk 0:00:02]} 63. f8=Q+ {[%clk 0:01:56]}  Kc7 {[%clk 0:00:02]} 64. e7 {[%clk 0:01:56]} 1-0


[Site "https://www.chess.com"]

[Event "Titled Tuesday Blitz June 27 Early 2023"]
[White "Kjartansson, David"]
[Black "Hakobyan, Aram"]
[WhiteFideId "2301130"]
[BlackFideId "13306677"]
[WhiteElo "2660"]
[BlackElo "2988"]
[Result "0-1"]
[Round "2"]
[TimeControl "180+2"]
[Date "2023.06.27"]
[WhiteClock "0:00:00"]
[BlackClock "0:00:09"]
[Board "14"]

1. d4 {[%clk 0:03:00]}  g6 {[%clk 0:02:58]} 2. Nc3 {[%clk 0:03:00]}  Bg7 {[%clk 0:02:58]} 3. Bf4 {[%clk 0:03:01]}  d5 {[%clk 0:02:53]} 4. e3 {[%clk 0:03:01]}  Nf6 {[%clk 0:02:52]} 5. h4 {[%clk 0:03:01]}  h5 {[%clk 0:02:52]} 6. Nf3 {[%clk 0:03:01]}  c5 {[%clk 0:02:50]} 7. dxc5 {[%clk 0:02:59]}  Nc6 {[%clk 0:02:51]} 8. a3 {[%clk 0:02:59]}  Bg4 {[%clk 0:02:46]} 9. b4 {[%clk 0:02:58]}  Ne4 {[%clk 0:02:40]} 10. Nxe4 {[%clk 0:02:53]}  dxe4 {[%clk 0:02:40]} 11. Qxd8+ {[%clk 0:02:49]}  Rxd8 {[%clk 0:02:41]} 12. Nd4 {[%clk 0:02:35]}  e5 {[%clk 0:02:25]} 13. Nxc6 {[%clk 0:02:25]}  exf4 {[%clk 0:02:25]} 14. Nd4 {[%clk 0:02:21]}  Rxd4 {[%clk 0:02:08]} 15. exd4 {[%clk 0:02:20]}  Bxd4 {[%clk 0:02:09]} 16. Bb5+ {[%clk 0:02:20]}  Ke7 {[%clk 0:02:09]} 17. O-O {[%clk 0:02:07]}  Bxa1 {[%clk 0:02:08]} 18. Rxa1 {[%clk 0:02:07]}  Rd8 {[%clk 0:01:30]} 19. Re1 {[%clk 0:01:56]}  Bf5 {[%clk 0:01:30]} 20. Bd3 {[%clk 0:01:44]}  Rd4 {[%clk 0:01:28]} 21. f3 {[%clk 0:01:42]}  e3 {[%clk 0:01:26]} 22. Bxf5 {[%clk 0:01:41]}  gxf5 {[%clk 0:01:27]} 23. g3 {[%clk 0:01:08]}  fxg3 {[%clk 0:01:22]} 24. Rxe3+ {[%clk 0:01:08]}  Kf6 {[%clk 0:01:22]} 25. Kg2 {[%clk 0:00:42]}  f4 {[%clk 0:01:19]} 26. Rd3 {[%clk 0:00:42]}  Ke5 {[%clk 0:00:37]} 27. Rxd4 {[%clk 0:00:30]}  Kxd4 {[%clk 0:00:37]} 28. c3+ {[%clk 0:00:26]}  Kc4 {[%clk 0:00:35]} 29. Kf1 {[%clk 0:00:15]}  f6 {[%clk 0:00:13]} 30. Kg2 {[%clk 0:00:15]}  a6 {[%clk 0:00:11]} 31. Kf1 {[%clk 0:00:14]}  Kxc3 {[%clk 0:00:09]} 32. b5 {[%clk 0:00:00]}  axb5 {[%clk 0:00:09]} 0-1


[Site "https://www.chess.com"]

[Event "Titled Tuesday Blitz June 27 Early 2023"]
[White "Andreikin, Dmitry"]
[Black "Manukyan, Sargis A."]
[WhiteFideId "4158814"]
[BlackFideId "13303970"]
[WhiteElo "2987"]
[BlackElo "2657"]
[Result "1-0"]
[Round "2"]
[TimeControl "180+2"]
[Date "2023.06.27"]
[WhiteClock "0:00:54"]
[BlackClock "0:00:00"]
[Board "15"]

1. e4 {[%clk 0:02:57]}  c5 {[%clk 0:02:59]} 2. Nc3 {[%clk 0:02:56]}  d6 {[%clk 0:02:58]} 3. Nge2 {[%clk 0:02:56]}  Nc6 {[%clk 0:02:57]} 4. d4 {[%clk 0:02:54]}  cxd4 {[%clk 0:02:57]} 5. Nxd4 {[%clk 0:02:55]}  Nf6 {[%clk 0:02:57]} 6. h3 {[%clk 0:02:53]}  g6 {[%clk 0:02:57]} 7. Be3 {[%clk 0:02:52]}  Bg7 {[%clk 0:02:57]} 8. Bc4 {[%clk 0:02:46]}  O-O {[%clk 0:02:58]} 9. Bb3 {[%clk 0:02:46]}  Nxd4 {[%clk 0:02:49]} 10. Bxd4 {[%clk 0:02:45]}  Be6 {[%clk 0:02:49]} 11. Bxe6 {[%clk 0:02:39]}  fxe6 {[%clk 0:02:49]} 12. O-O {[%clk 0:02:34]}  Qa5 {[%clk 0:02:42]} 13. e5 {[%clk 0:02:31]}  Nd5 {[%clk 0:02:32]} 14. exd6 {[%clk 0:02:29]}  Nxc3 {[%clk 0:02:13]} 15. Bxc3 {[%clk 0:02:26]}  Bxc3 {[%clk 0:02:08]} 16. dxe7 {[%clk 0:02:26]}  Rfe8 {[%clk 0:01:56]} 17. bxc3 {[%clk 0:02:26]}  Qxc3 {[%clk 0:01:44]} 18. Qd7 {[%clk 0:02:26]}  Qc6 {[%clk 0:01:43]} 19. Rad1 {[%clk 0:02:26]}  Qxd7 {[%clk 0:01:36]} 20. Rxd7 {[%clk 0:02:25]}  Kf7 {[%clk 0:01:35]} 21. Rxb7 {[%clk 0:02:25]}  Rxe7 {[%clk 0:01:36]} 22. Rfb1 {[%clk 0:02:22]}  Re8 {[%clk 0:01:28]} 23. Kf1 {[%clk 0:02:21]}  Kf6 {[%clk 0:01:28]} 24. Ke2 {[%clk 0:02:22]}  h5 {[%clk 0:01:28]} 25. c4 {[%clk 0:02:21]}  a6 {[%clk 0:01:22]} 26. Kd3 {[%clk 0:02:18]}  Rd8+ {[%clk 0:01:20]} 27. Kc3 {[%clk 0:02:19]}  Ree8 {[%clk 0:01:10]} 28. Ra7 {[%clk 0:02:18]}  Rd6 {[%clk 0:01:10]} 29. Rbb7 {[%clk 0:01:59]}  Red8 {[%clk 0:01:09]} 30. Rf7+ {[%clk 0:01:59]}  Ke5 {[%clk 0:01:07]} 31. Rf3 {[%clk 0:01:59]}  Rd1 {[%clk 0:00:48]} 32. Re3+ {[%clk 0:01:59]}  Kf5 {[%clk 0:00:44]} 33. Rxa6 {[%clk 0:01:57]}  Rc1+ {[%clk 0:00:43]} 34. Kb4 {[%clk 0:01:53]}  Rb8+ {[%clk 0:00:42]} 35. Kc5 {[%clk 0:01:53]}  Rc8+ {[%clk 0:00:42]} 36. Rc6 {[%clk 0:01:52]}  Rxc6+ {[%clk 0:00:39]} 37. Kxc6 {[%clk 0:01:53]}  Rxc4+ {[%clk 0:00:39]} 38. Kb5 {[%clk 0:01:53]}  Rc2 {[%clk 0:00:38]} 39. Rf3+ {[%clk 0:01:50]}  Ke5 {[%clk 0:00:31]} 40. a4 {[%clk 0:01:51]}  Rb2+ {[%clk 0:00:29]} 41. Kc5 {[%clk 0:01:46]}  g5 {[%clk 0:00:23]} 42. a5 {[%clk 0:01:44]}  Ra2 {[%clk 0:00:22]} 43. Kb4 {[%clk 0:01:40]}  g4 {[%clk 0:00:22]} 44. hxg4 {[%clk 0:01:33]}  hxg4 {[%clk 0:00:23]} 45. Rf7 {[%clk 0:01:19]}  g3 {[%clk 0:00:17]} 46. fxg3 {[%clk 0:01:17]}  Rxg2 {[%clk 0:00:18]} 47. Rg7 {[%clk 0:01:17]}  Rb2+ {[%clk 0:00:17]} 48. Kc5 {[%clk 0:01:16]}  Rc2+ {[%clk 0:00:16]} 49. Kb6 {[%clk 0:01:13]}  Rb2+ {[%clk 0:00:17]} 50. Kc6 {[%clk 0:01:09]}  Rc2+ {[%clk 0:00:16]} 51. Kb7 {[%clk 0:01:10]}  Rb2+ {[%clk 0:00:15]} 52. Ka7 {[%clk 0:01:08]}  Kf6 {[%clk 0:00:14]} 53. Rb7 {[%clk 0:01:06]}  Rg2 {[%clk 0:00:14]} 54. Rb3 {[%clk 0:01:06]}  e5 {[%clk 0:00:12]} 55. a6 {[%clk 0:01:06]}  Rd2 {[%clk 0:00:10]} 56. Kb7 {[%clk 0:01:04]}  Rd7+ {[%clk 0:00:08]} 57. Kb8 {[%clk 0:01:00]}  Rd8+ {[%clk 0:00:07]} 58. Kc7 {[%clk 0:01:00]}  Re8 {[%clk 0:00:07]} 59. a7 {[%clk 0:00:59]}  e4 {[%clk 0:00:08]} 60. Rb8 {[%clk 0:00:56]}  Re7+ {[%clk 0:00:07]} 61. Kb6 {[%clk 0:00:56]}  e3 {[%clk 0:00:05]} 62. a8=Q {[%clk 0:00:56]}  e2 {[%clk 0:00:05]} 63. Qf3+ {[%clk 0:00:56]}  Kg6 {[%clk 0:00:05]} 64. Qg4+ {[%clk 0:00:54]}  Kf7 {[%clk 0:00:03]} 65. Qf5+ {[%clk 0:00:54]}  Kg7 {[%clk 0:00:03]} 66. Qf8+ {[%clk 0:00:54]}  Kg6 {[%clk 0:00:00]} 67. Qxe7 {[%clk 0:00:54]} 1-0


[Site "https://www.chess.com"]